{"text_format":"2","workbook":"xlsx","n_sheets":4,"sheets":["Új táblázat","Olajtároló","Követelményértékek","Régi táblázat 2017-ből"],"not_rendered":{"charts":0,"images":0,"macros":0,"external_links":0,"defined_names":2,"comments":0,"pivot_tables":0},"unopened":[],"bounds":{"document_bytes":16777216,"sheet_cells":100000,"run_cost":"one","rows_first":2000,"rows_last":500,"rows_between":2000,"halvings":0,"cell_chars":16384,"cell_head_chars":4096},"cells_cut":0,"cells_raw":0,"read":"whole","date_system":"1900"}

{"sheet":"Új táblázat","index":0,"n_rows":119,"n_cols":20,"rows_kept":119,"cut":false,"hidden":false,"merged":[[0,0,0,10],[0,11,0,13]]}
["SZTE NYOMÁSTARTÓ BERENDEZÉSEK",{"$nulls":10},"ESEDÉKES VIZSGÁLAT ÉVE "]
["SZTE számozás","Intézmény neve","Üzemel","Berendezés funkciója","Típus","Gy. szám","Gy.év","KAR megnev.:","Besorolási nyomás (>0,5)","Besorolási térfogat (>25)","ps*v [bar * liter] (>1000)","Üzemi ellenőrzés","Belső ellenőrzés","Szilárdsági ellenőrzés","Utolsó vizsgálat éve","Legközelebbi vizsgálat éve","Hatósági ellenőrzésre kötelezett?","Vizsgálathoz kell csere készülék?","Megjegyzés","Kapcsolattartó"]
[1,"selejtezve",{"$nulls":6},0,0,{"$f":"(Táblázat2[[#This Row],[Besorolási nyomás (>0,5)]]*Táblázat2[[#This Row],[Besorolási térfogat (>25)]])","v":0},{"$nulls":4},{"$f":"MIN(Táblázat2[[#This Row],[Üzemi ellenőrzés]:[Szilárdsági ellenőrzés]])","v":0},null,"nem"]
[2,"Gyermekklinika","Korányi fasor 14-15.","légtartály",null,204895,1995,"ÁOK (b)",7,500,{"$f":"(Táblázat2[[#This Row],[Besorolási nyomás (>0,5)]]*Táblázat2[[#This Row],[Besorolási térfogat (>25)]])","v":3500},2024,2028,2028,2019,{"$f":"MIN(Táblázat2[[#This Row],[Üzemi ellenőrzés]:[Szilárdsági ellenőrzés]])","v":2024},"igen","igen",null,"Farkas Bertalan: 30/248-7454"]
[3,"Sebészeti klinika (ÁTÍTÉS ALATT)","SELEJT !  / Sziveri info /","sterilező","GET",900045,1990,"ÁOK (b)",3.5,540,{"$f":"(Táblázat2[[#This Row],[Besorolási nyomás (>0,5)]]*Táblázat2[[#This Row],[Besorolási térfogat (>25)]])","v":1890},null,null,null,2017,{"$f":"MIN(Táblázat2[[#This Row],[Üzemi ellenőrzés]:[Szilárdsági ellenőrzés]])","v":0},"nem","nem","2/2016 (I.5.) NGM rendelet szerint a továbbiakban nem bejel. és ellenőrzés köteles, a további ell.-ről a tulajdonos rendelk."," Az épület átépítés alatt!"]
[4,"Sebészeti klinika (ÁTÍTÉS ALATT)","SELEJT !  / Sziveri info /","sterilező","GET",900046,1990,"ÁOK (b)",3.5,540,{"$f":"(Táblázat2[[#This Row],[Besorolási nyomás (>0,5)]]*Táblázat2[[#This Row],[Besorolási térfogat (>25)]])","v":1890},null,null,null,2017,{"$f":"MIN(Táblázat2[[#This Row],[Üzemi ellenőrzés]:[Szilárdsági ellenőrzés]])","v":0},"nem","nem","2/2016 (I.5.) NGM rendelet szerint a továbbiakban nem bejel. és ellenőrzés köteles, a további ell.-ről a tulajdonos rendelk."," Az épület átépítés alatt!"]
[5,"Sebészeti klinika (ÁTÍTÉS ALATT)","SELEJT !  / Sziveri info /","gőzfejlesztő","CERT",27030,2002,"ÁOK (b)",4.5,53,{"$f":"(Táblázat2[[#This Row],[Besorolási nyomás (>0,5)]]*Táblázat2[[#This Row],[Besorolási térfogat (>25)]])","v":238.5},null,null,null,2016,{"$f":"MIN(Táblázat2[[#This Row],[Üzemi ellenőrzés]:[Szilárdsági ellenőrzés]])","v":0},"nem","nem","2/2016 (I.5.) NGM rendelet szerint a továbbiakban nem bejel. és ellenőrzés köteles, a további ell.-ről a tulajdonos rendelk."," Az épület átépítés alatt!"]
[6,"Sebészeti klinika (ÁTÍTÉS ALATT)","Szeged, Pécsi u. 6.","légtartály",null,209895,1995,"ÁOK (b)",10,500,{"$f":"(Táblázat2[[#This Row],[Besorolási nyomás (>0,5)]]*Táblázat2[[#This Row],[Besorolási térfogat (>25)]])","v":5000},2019,2021,2026,2016,{"$f":"MIN(Táblázat2[[#This Row],[Üzemi ellenőrzés]:[Szilárdsági ellenőrzés]])","v":2019},"igen","nem",null," Az épület átépítés alatt!"]
[7,"Szemészeti klinika","SELEJT !  / Sziveri info /","gőzfejlesztő","CERT",27029,2002,"ÁOK (b)",4.5,53,{"$f":"(Táblázat2[[#This Row],[Besorolási nyomás (>0,5)]]*Táblázat2[[#This Row],[Besorolási térfogat (>25)]])","v":238.5},null,null,null,2016,{"$f":"MIN(Táblázat2[[#This Row],[Üzemi ellenőrzés]:[Szilárdsági ellenőrzés]])","v":0},"nem","nem","2/2016 (I.5.) NGM rendelet szerint a továbbiakban nem bejel. és ellenőrzés köteles, a további ell.-ről a tulajdonos rendelk.","Zsigó Erika: 30/943-8255"]
[8,"Szemészeti klinika","SELEJT !  / Sziveri info /","sterilező","SANAMIJ",86303,1986,"ÁOK (b)",3,500,{"$f":"(Táblázat2[[#This Row],[Besorolási nyomás (>0,5)]]*Táblázat2[[#This Row],[Besorolási térfogat (>25)]])","v":1500},2018,2022,2027,2015,{"$f":"MIN(Táblázat2[[#This Row],[Üzemi ellenőrzés]:[Szilárdsági ellenőrzés]])","v":2018},"igen","nem",null,"Zsigó Erika: 30/943-8255"]
[9,"I. sz. Belgyógy. Kl.","SELEJT !  / Sziveri info /","sterilező","SANAMIJ",88023,1990,"ÁOK (b)",3,520,{"$f":"(Táblázat2[[#This Row],[Besorolási nyomás (>0,5)]]*Táblázat2[[#This Row],[Besorolási térfogat (>25)]])","v":1560},null,null,null,2017,{"$f":"MIN(Táblázat2[[#This Row],[Üzemi ellenőrzés]:[Szilárdsági ellenőrzés]])","v":0},"nem","nem","2/2016 (I.5.) NGM rendelet szerint a továbbiakban nem bejel. és ellenőrzés köteles, a további ell.-ről a tulajdonos rendelk."]
[10,"410 ágyas klinika","SELEJT !  / Sziveri info /","sterilező","SANAMIJ",95024,1995,"ÁOK (b)",3,520,{"$f":"(Táblázat2[[#This Row],[Besorolási nyomás (>0,5)]]*Táblázat2[[#This Row],[Besorolási térfogat (>25)]])","v":1560},null,null,null,2017,{"$f":"MIN(Táblázat2[[#This Row],[Üzemi ellenőrzés]:[Szilárdsági ellenőrzés]])","v":0},"nem","nem","2/2016 (I.5.) NGM rendelet szerint a továbbiakban nem bejel. és ellenőrzés köteles, a további ell.-ről a tulajdonos rendelk.","Rósa Julianna: 70/622-5557"]
[11,"410 ágyas klinika","SELEJT !  / Sziveri info /","sterilező","SANAMIJ",95025,1995,"ÁOK (b)",3,520,{"$f":"(Táblázat2[[#This Row],[Besorolási nyomás (>0,5)]]*Táblázat2[[#This Row],[Besorolási térfogat (>25)]])","v":1560},null,null,null,2017,{"$f":"MIN(Táblázat2[[#This Row],[Üzemi ellenőrzés]:[Szilárdsági ellenőrzés]])","v":0},"nem","nem","2/2016 (I.5.) NGM rendelet szerint a továbbiakban nem bejel. és ellenőrzés köteles, a további ell.-ről a tulajdonos rendelk.","Rósa Julianna: 70/622-5557"]
[12,"410 ágyas klinika","SELEJT !  / Sziveri info /","sterilező","SANAMIJ",90004,1991,"ÁOK (b)",3,520,{"$f":"(Táblázat2[[#This Row],[Besorolási nyomás (>0,5)]]*Táblázat2[[#This Row],[Besorolási térfogat (>25)]])","v":1560},null,null,null,2017,{"$f":"MIN(Táblázat2[[#This Row],[Üzemi ellenőrzés]:[Szilárdsági ellenőrzés]])","v":0},"nem","nem","2/2016 (I.5.) NGM rendelet szerint a továbbiakban nem bejel. és ellenőrzés köteles, a további ell.-ről a tulajdonos rendelk.","Rósa Julianna: 70/622-5557"]
[13,"selejtezve",{"$nulls":6},0,0,{"$f":"(Táblázat2[[#This Row],[Besorolási nyomás (>0,5)]]*Táblázat2[[#This Row],[Besorolási térfogat (>25)]])","v":0},{"$nulls":4},{"$f":"MIN(Táblázat2[[#This Row],[Üzemi ellenőrzés]:[Szilárdsági ellenőrzés]])","v":0},null,"nem"]
[14,"selejtezve",{"$nulls":6},0,0,{"$f":"(Táblázat2[[#This Row],[Besorolási nyomás (>0,5)]]*Táblázat2[[#This Row],[Besorolási térfogat (>25)]])","v":0},{"$nulls":4},{"$f":"MIN(Táblázat2[[#This Row],[Üzemi ellenőrzés]:[Szilárdsági ellenőrzés]])","v":0},null,"nem"]
[15,"Központi Kazánház","Semmelweis u. 8.","légtartály",null,2062,1983,"ÁOK (b)",10,500,{"$f":"(Táblázat2[[#This Row],[Besorolási nyomás (>0,5)]]*Táblázat2[[#This Row],[Besorolási térfogat (>25)]])","v":5000},2020,2022,2027,2017,{"$f":"MIN(Táblázat2[[#This Row],[Üzemi ellenőrzés]:[Szilárdsági ellenőrzés]])","v":2020},"igen","nem",null,"Borbély Attila: 30/371-7512"]
[16,"selejtezve",{"$nulls":6},0,0,{"$f":"(Táblázat2[[#This Row],[Besorolási nyomás (>0,5)]]*Táblázat2[[#This Row],[Besorolási térfogat (>25)]])","v":0},{"$nulls":4},{"$f":"MIN(Táblázat2[[#This Row],[Üzemi ellenőrzés]:[Szilárdsági ellenőrzés]])","v":0},null,"nem"]
[17,"Bolyai épület","Aradi vértanúk tere 1.","légtartály ",null,11853,1993,"TTIK",12,350,{"$f":"(Táblázat2[[#This Row],[Besorolási nyomás (>0,5)]]*Táblázat2[[#This Row],[Besorolási térfogat (>25)]])","v":4200},2022,2027,2027,2017,{"$f":"MIN(Táblázat2[[#This Row],[Üzemi ellenőrzés]:[Szilárdsági ellenőrzés]])","v":2022},"igen","nem",null,"Kovács István 0670 3387482"]
[18,"Bolyai épület","Aradi vértanúk tere 1.","légtartály",null,8442,1996,"TTIK",7,100,{"$f":"(Táblázat2[[#This Row],[Besorolási nyomás (>0,5)]]*Táblázat2[[#This Row],[Besorolási térfogat (>25)]])","v":700}," -"," -"," -"," -",{"$f":"MIN(Táblázat2[[#This Row],[Üzemi ellenőrzés]:[Szilárdsági ellenőrzés]])","v":0},null,"nem","ÜZEMEN KÍVÜL / Cserére vár","Kovács István 0670 3387482"]
[19,"Kémiai épület ","Dóm tér 7-8. ","légtartály",null,53,2000,"TTIK",11,50,{"$f":"(Táblázat2[[#This Row],[Besorolási nyomás (>0,5)]]*Táblázat2[[#This Row],[Besorolási térfogat (>25)]])","v":550}," -"," -"," -"," -",{"$f":"MIN(Táblázat2[[#This Row],[Üzemi ellenőrzés]:[Szilárdsági ellenőrzés]])","v":0},"nem","nem",null,"Kovács István 0670 3387482"]
[20,"Kémiai épület ","Dóm tér 7-8.","légtartály",null,5150,1999,"TTIK",11,300,{"$f":"(Táblázat2[[#This Row],[Besorolási nyomás (>0,5)]]*Táblázat2[[#This Row],[Besorolási térfogat (>25)]])","v":3300},2020,2025,2025,2015,{"$f":"MIN(Táblázat2[[#This Row],[Üzemi ellenőrzés]:[Szilárdsági ellenőrzés]])","v":2020},"igen","nem",null,"Kovács István 0670 3387482"]
[21,"Klinikai Mikrobiol. Int.","SELEJT !  / Sziveri info /","autokláv",null,278160,1977,"ÁOK (b)",2.5,115,{"$f":"(Táblázat2[[#This Row],[Besorolási nyomás (>0,5)]]*Táblázat2[[#This Row],[Besorolási térfogat (>25)]])","v":287.5}," -"," -"," -"," -",{"$f":"MIN(Táblázat2[[#This Row],[Üzemi ellenőrzés]:[Szilárdsági ellenőrzés]])","v":0},null,"nem","ÜZEMEN KÍVÜL"]
[22,"Klinikai Mikrobiol. Int.","SELEJT !  / Sziveri info /","autokláv",null,null,null,"ÁOK (b)",2.5,100,{"$f":"(Táblázat2[[#This Row],[Besorolási nyomás (>0,5)]]*Táblázat2[[#This Row],[Besorolási térfogat (>25)]])","v":250},{"$nulls":4},{"$f":"MIN(Táblázat2[[#This Row],[Üzemi ellenőrzés]:[Szilárdsági ellenőrzés]])","v":0},null,"nem","MTA tulajdonába került vissza"]
[23,"Klinikai Mikrobiol. Int.","SELEJT !  / Sziveri info /","autokláv",null,433,1977,"ÁOK (b)",2.5,115,{"$f":"(Táblázat2[[#This Row],[Besorolási nyomás (>0,5)]]*Táblázat2[[#This Row],[Besorolási térfogat (>25)]])","v":287.5},null,null,null,2016,{"$f":"MIN(Táblázat2[[#This Row],[Üzemi ellenőrzés]:[Szilárdsági ellenőrzés]])","v":0},"nem","nem","2/2016 (I.5.) NGM rendelet szerint a továbbiakban nem bejel. és ellenőrzés köteles, a további ell.-ről a tulajdonos rendelk.","Varján Melinda:  30/958-8365"]
[24,"Klinikai Mikrobiol. Int.","SELEJT !  / Sziveri info /","autokláv",null,"31-4764/0",1987,"ÁOK (b)",3,150,{"$f":"(Táblázat2[[#This Row],[Besorolási nyomás (>0,5)]]*Táblázat2[[#This Row],[Besorolási térfogat (>25)]])","v":450},null,null,null,2016,{"$f":"MIN(Táblázat2[[#This Row],[Üzemi ellenőrzés]:[Szilárdsági ellenőrzés]])","v":0},"nem","nem","2/2016 (I.5.) NGM rendelet szerint a továbbiakban nem bejel. és ellenőrzés köteles, a további ell.-ről a tulajdonos rendelk.","Varján Melinda:  30/958-8366"]
[25,"Klinikai Mikrobiol. Int.","SELEJT !  / Sziveri info /","autokláv",null,452,1977,"ÁOK (b)",2.5,115,{"$f":"(Táblázat2[[#This Row],[Besorolási nyomás (>0,5)]]*Táblázat2[[#This Row],[Besorolási térfogat (>25)]])","v":287.5},null,null,null,2016,{"$f":"MIN(Táblázat2[[#This Row],[Üzemi ellenőrzés]:[Szilárdsági ellenőrzés]])","v":0},"nem","nem","2/2016 (I.5.) NGM rendelet szerint a továbbiakban nem bejel. és ellenőrzés köteles, a további ell.-ről a tulajdonos rendelk.","Varján Melinda:  30/958-8367"]
[26,"selejtezve",{"$nulls":6},0,0,{"$f":"(Táblázat2[[#This Row],[Besorolási nyomás (>0,5)]]*Táblázat2[[#This Row],[Besorolási térfogat (>25)]])","v":0},{"$nulls":4},{"$f":"MIN(Táblázat2[[#This Row],[Üzemi ellenőrzés]:[Szilárdsági ellenőrzés]])","v":0},null,"nem"]
[27,"selejtezve",{"$nulls":6},0,0,{"$f":"(Táblázat2[[#This Row],[Besorolási nyomás (>0,5)]]*Táblázat2[[#This Row],[Besorolási térfogat (>25)]])","v":0},{"$nulls":4},{"$f":"MIN(Táblázat2[[#This Row],[Üzemi ellenőrzés]:[Szilárdsági ellenőrzés]])","v":0},null,"nem"]
[28,"Fogklinika","Tisza Lajos krt. 64-66.","légtartály",null,668335,null,"FK ",8,110,{"$f":"(Táblázat2[[#This Row],[Besorolási nyomás (>0,5)]]*Táblázat2[[#This Row],[Besorolási térfogat (>25)]])","v":880},null,null,null," -",{"$f":"MIN(Táblázat2[[#This Row],[Üzemi ellenőrzés]:[Szilárdsági ellenőrzés]])","v":0},"nem","nem",null,"Kapás György: 70/439-9362"]
[29,"Mikrobiológiai Tanszék","Közép fasor 52.","autokláv",null,"315382/2",null,"TTIK",2.5,150,{"$f":"(Táblázat2[[#This Row],[Besorolási nyomás (>0,5)]]*Táblázat2[[#This Row],[Besorolási térfogat (>25)]])","v":375},null,null,null,2016,{"$f":"MIN(Táblázat2[[#This Row],[Üzemi ellenőrzés]:[Szilárdsági ellenőrzés]])","v":0},"nem","nem","2/2016 (I.5.) NGM rendelet szerint a továbbiakban nem bejel. és ellenőrzés köteles, a további ell.-ről a tulajdonos rendelk.","Kovács István 0670 3387482"]
[30,"Mikrobiológiai Tanszék","Közép fasor 52.","autokláv",null,"1511-558-53",1958,"TTIK",2.5,125,{"$f":"(Táblázat2[[#This Row],[Besorolási nyomás (>0,5)]]*Táblázat2[[#This Row],[Besorolási térfogat (>25)]])","v":312.5},null,null,null,2016,{"$f":"MIN(Táblázat2[[#This Row],[Üzemi ellenőrzés]:[Szilárdsági ellenőrzés]])","v":0},"nem","nem","2/2016 (I.5.) NGM rendelet szerint a továbbiakban nem bejel. és ellenőrzés köteles, a további ell.-ről a tulajdonos rendelk.","Kovács István 0670 3387482"]
[31,"SZTE MK","Moszkvai krt. 5-7.","autokláv",null,196001,1960,"MK",3,400,{"$f":"(Táblázat2[[#This Row],[Besorolási nyomás (>0,5)]]*Táblázat2[[#This Row],[Besorolási térfogat (>25)]])","v":1200}," -"," -"," -",2012,{"$f":"MIN(Táblázat2[[#This Row],[Üzemi ellenőrzés]:[Szilárdsági ellenőrzés]])","v":0},"nem","nem","ÜZEMEN KÍVÜL","Tiszai Zoltán 0630 3320876"]
[32,"SZTE MK  ","Moszkvai krt. 5-7.","légtartály",null,2063,1988,"MK",7.5,500,{"$f":"(Táblázat2[[#This Row],[Besorolási nyomás (>0,5)]]*Táblázat2[[#This Row],[Besorolási térfogat (>25)]])","v":3750}," -"," -"," -",2012,{"$f":"MIN(Táblázat2[[#This Row],[Üzemi ellenőrzés]:[Szilárdsági ellenőrzés]])","v":0},"igen","nem","ÜZEMEN KÍVÜL","Tiszai Zoltán 0630 3320876"]
[33,"SZTE MGK Hmvhely","Andrássy u. 15.","autokláv",null,81013,1981,"MGK",2.5,150,{"$f":"(Táblázat2[[#This Row],[Besorolási nyomás (>0,5)]]*Táblázat2[[#This Row],[Besorolási térfogat (>25)]])","v":375},null,null,null,2016,{"$f":"MIN(Táblázat2[[#This Row],[Üzemi ellenőrzés]:[Szilárdsági ellenőrzés]])","v":0},"nem","nem","2/2016 (I.5.) NGM rendelet szerint a továbbiakban nem bejel. és ellenőrzés köteles, a további ell.-ről a tulajdonos rendelk.","Kurai Ferenc 0630 2077524"]
[34,"SZTE MGK Hmvhely ","Andrássy u. 15.","autokláv",null,"2251/9",null,"MGK",1.5,15,{"$f":"(Táblázat2[[#This Row],[Besorolási nyomás (>0,5)]]*Táblázat2[[#This Row],[Besorolási térfogat (>25)]])","v":22.5},null,null,null," -",{"$f":"MIN(Táblázat2[[#This Row],[Üzemi ellenőrzés]:[Szilárdsági ellenőrzés]])","v":0},"nem","nem",null,"Kurai Ferenc 0630 2077524"]
[35,"SZTE MGK Hmvhely ","Andrássy u. 15.","autokláv",null,"22507/9",1981,"MGK",1.5,15,{"$f":"(Táblázat2[[#This Row],[Besorolási nyomás (>0,5)]]*Táblázat2[[#This Row],[Besorolási térfogat (>25)]])","v":22.5},null,null,null," -",{"$f":"MIN(Táblázat2[[#This Row],[Üzemi ellenőrzés]:[Szilárdsági ellenőrzés]])","v":0},"nem","nem",null,"Kurai Ferenc 0630 2077524"]
[36,"SZTE MGK Hmvhely ","Andrássy u. 15.","autokláv",null,"2253/9",null,"MGK",1.5,15,{"$f":"(Táblázat2[[#This Row],[Besorolási nyomás (>0,5)]]*Táblázat2[[#This Row],[Besorolási térfogat (>25)]])","v":22.5},null,null,null," -",{"$f":"MIN(Táblázat2[[#This Row],[Üzemi ellenőrzés]:[Szilárdsági ellenőrzés]])","v":0},"nem","nem",null,"Kurai Ferenc 0630 2077524"]
[37,"SZTE MGK Hmvhely ","Kutasi u.","gáztartály",null,507396,1996,"MGK",1,500,{"$f":"(Táblázat2[[#This Row],[Besorolási nyomás (>0,5)]]*Táblázat2[[#This Row],[Besorolási térfogat (>25)]])","v":500}," -"," -"," -"," -",{"$f":"MIN(Táblázat2[[#This Row],[Üzemi ellenőrzés]:[Szilárdsági ellenőrzés]])","v":0},null,"nem","Eladva","Kurai Ferenc 0630 2077524"]
[38,"SZTE Domaszék","Domaszék külterület.","gőzkazán","VERU",1081,1989,"ÁOK (o)",3.5,110,{"$f":"(Táblázat2[[#This Row],[Besorolási nyomás (>0,5)]]*Táblázat2[[#This Row],[Besorolási térfogat (>25)]])","v":385}," -"," -"," -",2013,{"$f":"MIN(Táblázat2[[#This Row],[Üzemi ellenőrzés]:[Szilárdsági ellenőrzés]])","v":0},"nem","nem","ÜZEMEN KÍVÜL"]
[39,"SZTE Domaszék","Domaszék külterület.","autokláv",null,2353,1979,"ÁOK (o)",2.5,100,{"$f":"(Táblázat2[[#This Row],[Besorolási nyomás (>0,5)]]*Táblázat2[[#This Row],[Besorolási térfogat (>25)]])","v":250}," -"," -"," -"," -",{"$f":"MIN(Táblázat2[[#This Row],[Üzemi ellenőrzés]:[Szilárdsági ellenőrzés]])","v":0},"igen","nem","ÜZEMEN KÍVÜL"]
[40,"Anatómia Intézet","Kossuth Lajos sgt 40.","gőzfejlesztő",null,10346,2000,"ÁOK (o)",10,9.8000000000000007,{"$f":"(Táblázat2[[#This Row],[Besorolási nyomás (>0,5)]]*Táblázat2[[#This Row],[Besorolási térfogat (>25)]])","v":98},null,null,null," -",{"$f":"MIN(Táblázat2[[#This Row],[Üzemi ellenőrzés]:[Szilárdsági ellenőrzés]])","v":0},"nem","nem",null,"Gavrán Tibor: 30/928-2230"]
[41,"Mosoda","Semmelweis u. 8.","légtartály",null,17671,1981,"ÁOK (o)",8,2000,{"$f":"(Táblázat2[[#This Row],[Besorolási nyomás (>0,5)]]*Táblázat2[[#This Row],[Besorolási térfogat (>25)]])","v":16000}," -"," -"," -",2008,{"$f":"MIN(Táblázat2[[#This Row],[Üzemi ellenőrzés]:[Szilárdsági ellenőrzés]])","v":0},"igen","nem","ÜZEMEN KÍVÜL"]
[42,"Nagyoktatási épület","Dóm tér 13.","légtartály",null,16683,1976,"ÁOK (o)",16,1000,{"$f":"(Táblázat2[[#This Row],[Besorolási nyomás (>0,5)]]*Táblázat2[[#This Row],[Besorolási térfogat (>25)]])","v":16000}," -"," -"," -",2007,{"$f":"MIN(Táblázat2[[#This Row],[Üzemi ellenőrzés]:[Szilárdsági ellenőrzés]])","v":0},"igen","nem","ÜZEMEN KÍVÜL"]
[43,"410 ágyas klinika","Semmelweis u. 6.","légtartály",null,20999,1988,"ÁOK (b)",16,1000,{"$f":"(Táblázat2[[#This Row],[Besorolási nyomás (>0,5)]]*Táblázat2[[#This Row],[Besorolási térfogat (>25)]])","v":16000},2022,2024,2029,2019,{"$f":"MIN(Táblázat2[[#This Row],[Üzemi ellenőrzés]:[Szilárdsági ellenőrzés]])","v":2022},"igen","nem",null,"Bakri Attiláné: 30/975-9663"]
["43/b.","410 ágyas klinika","Semmelweis u. 6.","légtartály",null,"21698-21708",2006,"ÁOK (b)",11,500,{"$f":"(Táblázat2[[#This Row],[Besorolási nyomás (>0,5)]]*Táblázat2[[#This Row],[Besorolási térfogat (>25)]])","v":5500}," -"," -"," -",null,{"$f":"MIN(Táblázat2[[#This Row],[Üzemi ellenőrzés]:[Szilárdsági ellenőrzés]])","v":0},"igen","nem","ÜZEMEN KÍVÜL"]
[44,"Közp.gyógyszertár ","Semmelweis u. 6.","sterilező","GETINGE",920773,1992,"ÁOK (b)",3.5,560,{"$f":"(Táblázat2[[#This Row],[Besorolási nyomás (>0,5)]]*Táblázat2[[#This Row],[Besorolási térfogat (>25)]])","v":1960},null,null,null,2017,{"$f":"MIN(Táblázat2[[#This Row],[Üzemi ellenőrzés]:[Szilárdsági ellenőrzés]])","v":0},"nem","nem","2/2016 (I.5.) NGM rendelet szerint a továbbiakban nem bejel. és ellenőrzés köteles, a további ell.-ről a tulajdonos rendelk.","Vargáné Edit 62/545-928"]
[45,"Közp.gyógyszertár ","SELEJT !  / Sziveri info /","sterilező","GETINGE",920772,1992,"ÁOK (b)",3.5,560,{"$f":"(Táblázat2[[#This Row],[Besorolási nyomás (>0,5)]]*Táblázat2[[#This Row],[Besorolási térfogat (>25)]])","v":1960}," -"," -"," -",2007,{"$f":"MIN(Táblázat2[[#This Row],[Üzemi ellenőrzés]:[Szilárdsági ellenőrzés]])","v":0},"nem","nem","ÜZEMEN KÍVÜL","Vargáné Edit 62/545-929"]
[46,"Közp.gyógyszertár ","Semmelweis u. 6.","légtartály",null,204692,1992,"ÁOK (b)",10,500,{"$f":"(Táblázat2[[#This Row],[Besorolási nyomás (>0,5)]]*Táblázat2[[#This Row],[Besorolási térfogat (>25)]])","v":5000},2020,2020,2025,2015,{"$f":"MIN(Táblázat2[[#This Row],[Üzemi ellenőrzés]:[Szilárdsági ellenőrzés]])","v":2020},"igen","nem",null,"Vargáné Edit 62/545-930"]
[47,"Központi kazánház","Semmelweis u. 8.","gőzkazán","Vitomax 200 HS",187003050,2003,"ÁOK (b)",12,11800,{"$f":"(Táblázat2[[#This Row],[Besorolási nyomás (>0,5)]]*Táblázat2[[#This Row],[Besorolási térfogat (>25)]])","v":141600},2018,2018,2021,2018,2018,"igen","nem","Borbély Attila Kazánházvezető ellenőrizteti."]
[48,"Központi kazánház","Semmelweis u. 8.","gőzkazán","Vitomax 200 HS",187003049,2003,"ÁOK (b)",12,11800,{"$f":"(Táblázat2[[#This Row],[Besorolási nyomás (>0,5)]]*Táblázat2[[#This Row],[Besorolási térfogat (>25)]])","v":141600},2018,2018,2021,2018,2018,"igen","nem","Borbély Attila Kazánházvezető ellenőrizteti."]
[49,"Központi kazánház","Semmelweis u. 8.","gőzkazán","3HO-7/13",7672,1978,"ÁOK (b)",12,25000,{"$f":"(Táblázat2[[#This Row],[Besorolási nyomás (>0,5)]]*Táblázat2[[#This Row],[Besorolási térfogat (>25)]])","v":300000},2018,2019,2025,2018,{"$f":"MIN(Táblázat2[[#This Row],[Üzemi ellenőrzés]:[Szilárdsági ellenőrzés]])","v":2018},"igen","nem","Borbély Attila Kazánházvezető ellenőrizteti."]
[50,"GYTK","Eötvös u. 2.","légtartály",null,29016,1975,"GYTK",10,2000,{"$f":"(Táblázat2[[#This Row],[Besorolási nyomás (>0,5)]]*Táblázat2[[#This Row],[Besorolási térfogat (>25)]])","v":20000},2019,2019,2019,2019,2019,"igen","nem",null,"Zámbó Zoltán 36 70 439 4560"]
[51,"GYTK","Eötvös u. 2.","autokláv",null,15912257,1959,"GYTK",3,30,{"$f":"(Táblázat2[[#This Row],[Besorolási nyomás (>0,5)]]*Táblázat2[[#This Row],[Besorolási térfogat (>25)]])","v":90},null,null,null," -",{"$f":"MIN(Táblázat2[[#This Row],[Üzemi ellenőrzés]:[Szilárdsági ellenőrzés]])","v":0},"nem","nem",null,"Zámbó Zoltán 36 70 439 4560"]
[52,"Domaszék","Domaszék külterület.","autokláv",null,271,1989,"ÁOK (o)",3,1400,{"$f":"(Táblázat2[[#This Row],[Besorolási nyomás (>0,5)]]*Táblázat2[[#This Row],[Besorolási térfogat (>25)]])","v":4200}," -"," -"," -",2017,{"$f":"MIN(Táblázat2[[#This Row],[Üzemi ellenőrzés]:[Szilárdsági ellenőrzés]])","v":0},"igen","nem","ÜZEMEN KÍVÜL"]
[53,"Gyermekkórház","Temesvári krt 35-37.","sterilező",null,97002,1997,"ÁOK (b)",3,520,{"$f":"(Táblázat2[[#This Row],[Besorolási nyomás (>0,5)]]*Táblázat2[[#This Row],[Besorolási térfogat (>25)]])","v":1560},null,null,null," ",{"$f":"MIN(Táblázat2[[#This Row],[Üzemi ellenőrzés]:[Szilárdsági ellenőrzés]])","v":0},"nem","nem",null,"Farkas Bertalan: 30/248-7454"]
[54,"Gyermekkórház","SELEJT !  / Sziveri info /","sterilező","GS 459-2-FO",96102,1996,"ÁOK (b)",3,147,{"$f":"(Táblázat2[[#This Row],[Besorolási nyomás (>0,5)]]*Táblázat2[[#This Row],[Besorolási térfogat (>25)]])","v":441},null,null,null," ",{"$f":"MIN(Táblázat2[[#This Row],[Üzemi ellenőrzés]:[Szilárdsági ellenőrzés]])","v":0},"nem","nem",null,"Farkas Bertalan: 30/248-7454"]
[55,"SZTE MK","Moszkvai krt. 5-7.","gőzkazán","TP 300/12G   I.",9182,1987,"MK",8,860,{"$f":"(Táblázat2[[#This Row],[Besorolási nyomás (>0,5)]]*Táblázat2[[#This Row],[Besorolási térfogat (>25)]])","v":6880},2019,2021,2026,2017,2019,"igen","nem",null,"Tiszai Zoltán 0630 3320876"]
[56,"SZTE MK","Moszkvai krt. 5-7.","gőzkazán","TP 300/12G   II.",9183,1987,"MK",8,860,{"$f":"(Táblázat2[[#This Row],[Besorolási nyomás (>0,5)]]*Táblázat2[[#This Row],[Besorolási térfogat (>25)]])","v":6880},2018,2021,2026,2017,2019,"igen","nem",null,"Tiszai Zoltán 0630 3320876"]
[57,"410 ágyas klinika","Semmelweis u. 6.","légtartály",null,"3139.2",1988,"ÁOK (b)",15,11000,{"$f":"(Táblázat2[[#This Row],[Besorolási nyomás (>0,5)]]*Táblázat2[[#This Row],[Besorolási térfogat (>25)]])","v":165000}," -"," -"," -"," -",{"$f":"MIN(Táblázat2[[#This Row],[Üzemi ellenőrzés]:[Szilárdsági ellenőrzés]])","v":0},"igen","nem","Bérlemény, engedélyekről a szállító gondoskodik","Bakri Attiláné: 30/975-9663"]
[58,"Gyermekkórház","Temesvári krt 35-37.","légtartály",null,null,1975,"ÁOK (b)",18,15000,{"$f":"(Táblázat2[[#This Row],[Besorolási nyomás (>0,5)]]*Táblázat2[[#This Row],[Besorolási térfogat (>25)]])","v":270000}," -"," -"," -"," -",{"$f":"MIN(Táblázat2[[#This Row],[Üzemi ellenőrzés]:[Szilárdsági ellenőrzés]])","v":0},"igen","nem","Bérlemény, engedélyekről a szállító gondoskodik"]
[59,"Körintenzív-ONKO","Korányi fasor 7.","légtartály",null,903390,1990,"ÁOK (b)",11,800,{"$f":"(Táblázat2[[#This Row],[Besorolási nyomás (>0,5)]]*Táblázat2[[#This Row],[Besorolási térfogat (>25)]])","v":8800},2024,2028,2028,2019,2024,"igen","igen",null,"Kiss Imre: 30/510-8101"]
[60,"Mikrobiológiai Tanszék","Közép fasor 52.","autokláv",null,"31-18200/9",null,"TTIK",2.5,150,{"$f":"(Táblázat2[[#This Row],[Besorolási nyomás (>0,5)]]*Táblázat2[[#This Row],[Besorolási térfogat (>25)]])","v":375},null,null,null,2016,{"$f":"MIN(Táblázat2[[#This Row],[Üzemi ellenőrzés]:[Szilárdsági ellenőrzés]])","v":0},"nem","nem","2/2016 (I.5.) NGM rendelet szerint a továbbiakban nem bejel. és ellenőrzés köteles, a további ell.-ről a tulajdonos rendelk.","Kovács István 0670 3387482"]
[61,"I. sz. Belgyógy. Kl.","Korányi fasor 8.","sterilező","FS 2",94015,1994,"ÁOK (b)",0.88,21,{"$f":"(Táblázat2[[#This Row],[Besorolási nyomás (>0,5)]]*Táblázat2[[#This Row],[Besorolási térfogat (>25)]])","v":18.48},null,null,null," ",{"$f":"MIN(Táblázat2[[#This Row],[Üzemi ellenőrzés]:[Szilárdsági ellenőrzés]])","v":0},"nem","nem"]
[62,"Béke ép. üveges kompr.","Rerrich B. tér 1.","légtartály",null,264,2002,"TTIK",10,100,{"$f":"(Táblázat2[[#This Row],[Besorolási nyomás (>0,5)]]*Táblázat2[[#This Row],[Besorolási térfogat (>25)]])","v":1000},{"$nulls":4},{"$f":"MIN(Táblázat2[[#This Row],[Üzemi ellenőrzés]:[Szilárdsági ellenőrzés]])","v":0},"nem","nem",null,"Kovács István 0670 3387482"]
[63,"Bolyai épület","Aradi vértanúk tere 1.","légtartály",null," -"," -"," -",0,0,{"$f":"(Táblázat2[[#This Row],[Besorolási nyomás (>0,5)]]*Táblázat2[[#This Row],[Besorolási térfogat (>25)]])","v":0}," -"," -"," -"," -",{"$f":"MIN(Táblázat2[[#This Row],[Üzemi ellenőrzés]:[Szilárdsági ellenőrzés]])","v":0},"igen","nem","Bérlemény, engedélyekről a szállító gondoskodik","Kovács István 0670 3387482"]
[64,"Irinyi épület","Tisza L. krt. 103.","gőzkazán","TP 300/07G",10909,1991,"TTIK",0.25,820,{"$f":"(Táblázat2[[#This Row],[Besorolási nyomás (>0,5)]]*Táblázat2[[#This Row],[Besorolási térfogat (>25)]])","v":205}," -"," -"," -",null,{"$f":"MIN(Táblázat2[[#This Row],[Üzemi ellenőrzés]:[Szilárdsági ellenőrzés]])","v":0},"nem","nem","ÜZEMEN KÍVÜL"]
[65,"Irinyi épület","Tisza L. krt. 103.","gőzkazán","TP 300/07G",10910,1991,"TTIK",0.25,820,{"$f":"(Táblázat2[[#This Row],[Besorolási nyomás (>0,5)]]*Táblázat2[[#This Row],[Besorolási térfogat (>25)]])","v":205}," -"," -"," -",null,{"$f":"MIN(Táblázat2[[#This Row],[Üzemi ellenőrzés]:[Szilárdsági ellenőrzés]])","v":0},"nem","nem","ÜZEMEN KÍVÜL"]
[66,"SZTE MK","Moszkvai krt. 5-7.","gőzkazán","TP 600/12G",9184,1987,"MK",12,0,{"$f":"(Táblázat2[[#This Row],[Besorolási nyomás (>0,5)]]*Táblázat2[[#This Row],[Besorolási térfogat (>25)]])","v":0}," -"," -"," -"," -",{"$f":"MIN(Táblázat2[[#This Row],[Üzemi ellenőrzés]:[Szilárdsági ellenőrzés]])","v":0},"nem","nem","ÜZEMEN KÍVÜL","Tiszai Zoltán"]
[67,"SZTE MGK Hmvhely ","Andrássy u. 15.","gőzkazán","Lavatherm",765,1977,"MGK",0.3,0,{"$f":"(Táblázat2[[#This Row],[Besorolási nyomás (>0,5)]]*Táblázat2[[#This Row],[Besorolási térfogat (>25)]])","v":0},null,null,null," -",{"$f":"MIN(Táblázat2[[#This Row],[Üzemi ellenőrzés]:[Szilárdsági ellenőrzés]])","v":0},"nem","nem",null,"Kurai Ferenc 0630 2077524"]
[68,"SZTE MGK Hmvhely ","Andrássy u. 15.","gőzkazán","Lavatherm",752,1976,"MGK",0.3,0,{"$f":"(Táblázat2[[#This Row],[Besorolási nyomás (>0,5)]]*Táblázat2[[#This Row],[Besorolási térfogat (>25)]])","v":0},null,null,null," -",{"$f":"MIN(Táblázat2[[#This Row],[Üzemi ellenőrzés]:[Szilárdsági ellenőrzés]])","v":0},"nem","nem",null,"Kurai Ferenc 0630 2077524"]
[69,"Mikrobiológiai Tanszék","Közép fasor 52.","autokláv","Atlas Copco GX 7",7000969,2007,"TTIK",14,500,{"$f":"(Táblázat2[[#This Row],[Besorolási nyomás (>0,5)]]*Táblázat2[[#This Row],[Besorolási térfogat (>25)]])","v":7000},2022,2027,2027,2017,{"$f":"MIN(Táblázat2[[#This Row],[Üzemi ellenőrzés]:[Szilárdsági ellenőrzés]])","v":2022},"igen","nem",null,"Kovács István 0670 3387482"]
[70,"Női Klinika","Semmelweis u. 1.","sterilező","GE 2609-1",980831,1998,"ÁOK (b)",3.5,415,{"$f":"(Táblázat2[[#This Row],[Besorolási nyomás (>0,5)]]*Táblázat2[[#This Row],[Besorolási térfogat (>25)]])","v":1452.5},null,null,null,2016,{"$f":"MIN(Táblázat2[[#This Row],[Üzemi ellenőrzés]:[Szilárdsági ellenőrzés]])","v":0},"nem","nem","2/2016 (I.5.) NGM rendelet szerint a továbbiakban nem bejel. és ellenőrzés köteles, a további ell.-ről a tulajdonos rendelk.","Boldizsárné Anita: 70/456-1622"]
[71,"Fogklinika","Tisza Lajos krt. 64-66.","sterilező","GE 666-1",950427,1995,"FK ",3,298,{"$f":"(Táblázat2[[#This Row],[Besorolási nyomás (>0,5)]]*Táblázat2[[#This Row],[Besorolási térfogat (>25)]])","v":894},null,null,null,2017,{"$f":"MIN(Táblázat2[[#This Row],[Üzemi ellenőrzés]:[Szilárdsági ellenőrzés]])","v":0},"nem","nem","2/2016 (I.5.) NGM rendelet szerint a továbbiakban nem bejel. és ellenőrzés köteles, a további ell.-ről a tulajdonos rendelk.","Kapás György: 70/439-9362"]
[72,"Női Klinika","Semmelweis u. 1.","sterilező",null,950406,1993,"ÁOK (b)",1,177,{"$f":"(Táblázat2[[#This Row],[Besorolási nyomás (>0,5)]]*Táblázat2[[#This Row],[Besorolási térfogat (>25)]])","v":177},null,null,null," ",{"$f":"MIN(Táblázat2[[#This Row],[Üzemi ellenőrzés]:[Szilárdsági ellenőrzés]])","v":0},"nem","nem",null,"Boldizsárné Anita: 70/456-1622"]
[73,"Női Klinika","Semmelweis u. 1.","sterilező",null,60366,2006,"ÁOK (b)",0.4,30,{"$f":"(Táblázat2[[#This Row],[Besorolási nyomás (>0,5)]]*Táblázat2[[#This Row],[Besorolási térfogat (>25)]])","v":12},null,null,null," ",{"$f":"MIN(Táblázat2[[#This Row],[Üzemi ellenőrzés]:[Szilárdsági ellenőrzés]])","v":0},"nem","nem",null,"Boldizsárné Anita: 70/456-1623"]
[74,"Orvosi Mikr. Bio. És Immun. Int.","Dóm tér 10.","autokláv","LVS 50/70 ",1220,2000,"ÁOK (b)",2.5,137,{"$f":"(Táblázat2[[#This Row],[Besorolási nyomás (>0,5)]]*Táblázat2[[#This Row],[Besorolási térfogat (>25)]])","v":342.5},null,null,null,2016,{"$f":"MIN(Táblázat2[[#This Row],[Üzemi ellenőrzés]:[Szilárdsági ellenőrzés]])","v":0},"nem","nem","2/2016 (I.5.) NGM rendelet szerint a továbbiakban nem bejel. és ellenőrzés köteles, a további ell.-ről a tulajdonos rendelk."]
[75,"selejtezve",{"$nulls":6},0,0,{"$f":"(Táblázat2[[#This Row],[Besorolási nyomás (>0,5)]]*Táblázat2[[#This Row],[Besorolási térfogat (>25)]])","v":0},{"$nulls":4},{"$f":"MIN(Táblázat2[[#This Row],[Üzemi ellenőrzés]:[Szilárdsági ellenőrzés]])","v":0},null,"nem"]
[76,"Biokémiai Intézet","Dóm tér 9.","légtartály","ZMB 48 V.",null,2005,"ÁOK (b)",8,24,{"$f":"(Táblázat2[[#This Row],[Besorolási nyomás (>0,5)]]*Táblázat2[[#This Row],[Besorolási térfogat (>25)]])","v":192},{"$nulls":4},{"$f":"MIN(Táblázat2[[#This Row],[Üzemi ellenőrzés]:[Szilárdsági ellenőrzés]])","v":0},"nem","nem",null,"Kovács István 0670 3387482"]
[77,"II. Korház ","Kálvária sgt. 57.","gőzfejlesztő","Certuss",11780,2005,"ÁOK (b)",10,32.299999999999997,{"$f":"(Táblázat2[[#This Row],[Besorolási nyomás (>0,5)]]*Táblázat2[[#This Row],[Besorolási térfogat (>25)]])","v":323},{"$nulls":4},{"$f":"MIN(Táblázat2[[#This Row],[Üzemi ellenőrzés]:[Szilárdsági ellenőrzés]])","v":0},"nem","nem",null,"Tombácz Lajos: 30/437-9464"]
[78,"II. Korház ","Kálvária sgt. 57.","gőzfejlesztő","Certuss",11823,2005,"ÁOK (b)",10,32.299999999999997,{"$f":"(Táblázat2[[#This Row],[Besorolási nyomás (>0,5)]]*Táblázat2[[#This Row],[Besorolási térfogat (>25)]])","v":323}," -"," -"," -",null,{"$f":"MIN(Táblázat2[[#This Row],[Üzemi ellenőrzés]:[Szilárdsági ellenőrzés]])","v":0},null,"nem","ÜZEMEN KÍVÜL"]
[79,"II. Korház ","SELEJT !  / Sziveri info /","sterilező","SANAMIJ tip 669-2V",5041,2005,"ÁOK (b)",3,493,{"$f":"(Táblázat2[[#This Row],[Besorolási nyomás (>0,5)]]*Táblázat2[[#This Row],[Besorolási térfogat (>25)]])","v":1479},null,null,null,2016,{"$f":"MIN(Táblázat2[[#This Row],[Üzemi ellenőrzés]:[Szilárdsági ellenőrzés]])","v":0},"nem","nem","2/2016 (I.5.) NGM rendelet szerint a továbbiakban nem bejel. és ellenőrzés köteles, a további ell.-ről a tulajdonos rendelk.","Tombácz Lajos: 30/437-9464"]
[80,"II. Korház","SELEJT !  / Sziveri info /","sterilező","SANAMIJ tip 669-2V",5042,2005,"ÁOK (b)",3,493,{"$f":"(Táblázat2[[#This Row],[Besorolási nyomás (>0,5)]]*Táblázat2[[#This Row],[Besorolási térfogat (>25)]])","v":1479},null,null,null,2016,{"$f":"MIN(Táblázat2[[#This Row],[Üzemi ellenőrzés]:[Szilárdsági ellenőrzés]])","v":0},"nem","nem","2/2016 (I.5.) NGM rendelet szerint a továbbiakban nem bejel. és ellenőrzés köteles, a további ell.-ről a tulajdonos rendelk.","Tombácz Lajos: 30/437-9465"]
[81,"II. Korház","SELEJT !  / Sziveri info /","sterilező","SANAMIJ tip 669-12-V",5017,2005,"ÁOK (b)",2.75,713,{"$f":"(Táblázat2[[#This Row],[Besorolási nyomás (>0,5)]]*Táblázat2[[#This Row],[Besorolási térfogat (>25)]])","v":1960.75},null,null,null,2016,{"$f":"MIN(Táblázat2[[#This Row],[Üzemi ellenőrzés]:[Szilárdsági ellenőrzés]])","v":0},"nem","nem","2/2016 (I.5.) NGM rendelet szerint a továbbiakban nem bejel. és ellenőrzés köteles, a további ell.-ről a tulajdonos rendelk.","Tombácz Lajos: 30/437-9466"]
[82,"II. Korház","Kálvária sgt. 57.","légtartály","KV 36",360516,null,"ÁOK (b)",0,0,{"$f":"(Táblázat2[[#This Row],[Besorolási nyomás (>0,5)]]*Táblázat2[[#This Row],[Besorolási térfogat (>25)]])","v":0}," -"," -"," -"," -",{"$f":"MIN(Táblázat2[[#This Row],[Üzemi ellenőrzés]:[Szilárdsági ellenőrzés]])","v":0},"nem","nem","Bérlemény, engedélyekről a szállító gondoskodik","Tombácz Lajos: 30/437-9467"]
[83,"II. Korház","Kálvária sgt. 57.","gőzfejlesztő ","Statim 5000",6218844511,1999,"ÁOK (b)",3.5,4,{"$f":"(Táblázat2[[#This Row],[Besorolási nyomás (>0,5)]]*Táblázat2[[#This Row],[Besorolási térfogat (>25)]])","v":14},{"$nulls":4},{"$f":"MIN(Táblázat2[[#This Row],[Üzemi ellenőrzés]:[Szilárdsági ellenőrzés]])","v":0},"nem","nem",null,"Tombácz Lajos: 30/437-9468"]
[84,"II. Korház","Kálvária sgt. 57.","gőzfejlesztő ","Statim 5000",6218964012,1999,"ÁOK (b)",3.5,4,{"$f":"(Táblázat2[[#This Row],[Besorolási nyomás (>0,5)]]*Táblázat2[[#This Row],[Besorolási térfogat (>25)]])","v":14},{"$nulls":4},{"$f":"MIN(Táblázat2[[#This Row],[Üzemi ellenőrzés]:[Szilárdsági ellenőrzés]])","v":0},"nem","nem",null,"Tombácz Lajos: 30/437-9469"]
[85,"II. Korház","Kálvária sgt. 57.","autokláv","Atlas Copco GX 7",44925,2005,"ÁOK (b)",11,270,{"$f":"(Táblázat2[[#This Row],[Besorolási nyomás (>0,5)]]*Táblázat2[[#This Row],[Besorolási térfogat (>25)]])","v":2970},"xxxx","xxxx","xxxx",2019,"xxxx","igen","nem",null,"Tombácz Lajos: 30/437-9470"]
[86,"II. Korház","Kálvária sgt. 57.","autokláv","Atlas Copco GX 7",44918,2005,"ÁOK (b)",11,270,{"$f":"(Táblázat2[[#This Row],[Besorolási nyomás (>0,5)]]*Táblázat2[[#This Row],[Besorolási térfogat (>25)]])","v":2970},null,2018,2018,2019,"xxxx","igen","nem","2/2016 (I.5.) NGM rendelet szerint a továbbiakban nem bejel. és ellenőrzés köteles, a további ell.-ről a tulajdonos rendelk.","Tombácz Lajos: 30/437-9471"]
[87,"II. Korház","Kálvária sgt. 57.","autokláv","Atlas Copco GX 7",44935,2005,"ÁOK (b)",11,270,{"$f":"(Táblázat2[[#This Row],[Besorolási nyomás (>0,5)]]*Táblázat2[[#This Row],[Besorolási térfogat (>25)]])","v":2970},"xxxx","xxxx","xxxx",2019,"xxxx","igen","nem","2/2016 (I.5.) NGM rendelet szerint a továbbiakban nem bejel. és ellenőrzés köteles, a további ell.-ről a tulajdonos rendelk.","Tombácz Lajos: 30/437-9472"]
[88,"SZTE MK","Moszkvai krt. 9.","légtartály",null,435294,2009,"MK",11,500,{"$f":"(Táblázat2[[#This Row],[Besorolási nyomás (>0,5)]]*Táblázat2[[#This Row],[Besorolási térfogat (>25)]])","v":5500},2019,2021,2021,2016,{"$f":"MIN(Táblázat2[[#This Row],[Üzemi ellenőrzés]:[Szilárdsági ellenőrzés]])","v":2019},"igen","nem",null,"Tiszai Zoltán 0630 3320876"]
[89,"Orvosi Mikr. Bio. És Immun. Int.","Dóm tér 10.","autokláv","MLS-3781 L","1y1049",2011,"ÁOK (b)",2,83,{"$f":"(Táblázat2[[#This Row],[Besorolási nyomás (>0,5)]]*Táblázat2[[#This Row],[Besorolási térfogat (>25)]])","v":166},null,null,null," ",{"$f":"MIN(Táblázat2[[#This Row],[Üzemi ellenőrzés]:[Szilárdsági ellenőrzés]])","v":0},"nem","nem",null,"Bakri Attiláné: 30/975-9663"]
[90,"410 ágyas klinika","Semmelweis u. 6.","légtartály",null,55055,2013,"ÁOK (b)",16,1000,{"$f":"(Táblázat2[[#This Row],[Besorolási nyomás (>0,5)]]*Táblázat2[[#This Row],[Besorolási térfogat (>25)]])","v":16000},2017,2019,2024,2014,{"$f":"MIN(Táblázat2[[#This Row],[Üzemi ellenőrzés]:[Szilárdsági ellenőrzés]])","v":2017},"igen","nem",null,"Bakri Attiláné: 30/975-9663"]
[91,"410 ágyas klinika","Semmelweis u. 6.","légtartály",null,571306,2012,"ÁOK (b)",11,500,{"$f":"(Táblázat2[[#This Row],[Besorolási nyomás (>0,5)]]*Táblázat2[[#This Row],[Besorolási térfogat (>25)]])","v":5500},2017,2019,2024,2014,{"$f":"MIN(Táblázat2[[#This Row],[Üzemi ellenőrzés]:[Szilárdsági ellenőrzés]])","v":2017},"igen","nem",null,"Bakri Attiláné: 30/975-9664"]
[92,"265-ágyas klinika","Semmelweis u. 6.","légtartály",null,52243,2013,"ÁOK (b)",16,1000,{"$f":"(Táblázat2[[#This Row],[Besorolási nyomás (>0,5)]]*Táblázat2[[#This Row],[Besorolási térfogat (>25)]])","v":16000},2022,2023,2023,2013,{"$f":"MIN(Táblázat2[[#This Row],[Üzemi ellenőrzés]:[Szilárdsági ellenőrzés]])","v":2022},"igen","nem",null,"Rósa Julianna: 70/622-5557"]
[93,"265-ágyas klinika","Semmelweis u. 6.","légtartály",null,52244,2014,"ÁOK (b)",16,1000,{"$f":"(Táblázat2[[#This Row],[Besorolási nyomás (>0,5)]]*Táblázat2[[#This Row],[Besorolási térfogat (>25)]])","v":16000},2022,2023,2023,2019,{"$f":"MIN(Táblázat2[[#This Row],[Üzemi ellenőrzés]:[Szilárdsági ellenőrzés]])","v":2022},"igen","nem",null,"Rósa Julianna: 70/622-5558"]
[94,"Optikai és Kvantume. Tansz.","MOL Ipartelep, Déli út","légtartály",null,26500,2007,"TTIK",16,1000,{"$f":"(Táblázat2[[#This Row],[Besorolási nyomás (>0,5)]]*Táblázat2[[#This Row],[Besorolási térfogat (>25)]])","v":16000},"xxxx","xxxx","xxxx",2019,"xxxx","igen","nem",null,"Kovács István 0670 3387482"]
[95,"TTIK Kémia épület","Dóm tér 7-8.","légtartály",null,1137,2011,"TTIK",11,270,{"$f":"(Táblázat2[[#This Row],[Besorolási nyomás (>0,5)]]*Táblázat2[[#This Row],[Besorolási térfogat (>25)]])","v":2970},"xxxx","xxxx","xxxx",2013,"xxxx","igen","nem",null,"Kovács István 0670 3387482"]
[]
[]
[]
[null,"Új készülékek :"]
["Leltárkörzet név","SZTE azonosító             ","Eszköz csoport név","Tárgyi eszköz  név","Gyáriszám","Üzembe helyezés dátum                                         "]
["Klinikai Mikrobiológia","504351","Autokláv","Autoklav ST-121","318400/7","1978.05.30."]
["Klinikai Mikrobiológia","566014","Autokláv","Laboratory Dline 160L 5075ELVC","170102183","2018.12.01."]
["Bőrgyógyászati Klinika","565273","Autokláv","GETINGE GSS67H","2531350-210-01","2021-11-22"]
["Szemészeti Klinika","565274","Autokláv","GETINGE GSS67H","2531350-200-01","2021-08-01"]
["Központi Műtő és Sterilizáló ","564669","Formalinsterilizáló","SANAMIJ MSTV-FO-6-6-6",75100912014,"2016.04.01."]
["Szülészeti és Nőgyógyászati Klinika","556963","Formalinsterilizáló","ODELGA FAR 4.25","4622","2004.05.11."]
["Központi Műtő és Sterilizáló            5820","567963","Autokláv","CELITRON Azteca A-6612 kétajtós 8 STE","36210007","2021.06.16."]
["Központi Műtő és Sterilizáló            5820","567964","Autokláv","CELITRON Azteca A-6612 kétajtós 8 STE","36210008","2021.06.16."]
["Központi Műtő és Sterilizáló            5820","567965","Autokláv","CELITRON Azteca A-6612 kétajtós 8 STE","36210006","2021.06.16."]
["Központi Műtő és Sterilizáló            5820","567966","Autokláv","CELITRON Azteca A-6612 kétajtós 8 STE","36210009","2021.06.16."]
["Központi Műtő és Sterilizáló            5820","567967","Autokláv","CELITRON Azteca A-6612 kétajtós 8 STE","36210005","2021.06.16."]
["Fül-Orr-Gégészeti és Fej-Nyaks          0600","567968","Asztali gőzsterilizáló","CELITRON Sting 11 B","12210001","2021.06.16."]
["Fül-Orr-Gégészeti és Fej-Nyaks          0600","568006","Autoklav"," Cliniclave 45 MD dupla ajtós 200L","2021C45MD1004","2021.07.09."]
["II. Kórház Kp. Sterilizáló","…","Autokláv","CELITRON Azteca A-6612 kétajtós 8 STE",36210002,"2021-08-11"]
["II. Kórház Kp. Sterilizáló","…","Autokláv","CELITRON Azteca A-6612 kétajtós 8 STE",36210003,"2021-08-11"]
["II. Kórház Kp. Sterilizáló","…","Autokláv","CELITRON Azteca A-6612 kétajtós 8 STE",36210004,"2021-08-11"]

{"sheet":"Olajtároló","index":1,"n_rows":10,"n_cols":11,"rows_kept":10,"cut":false,"hidden":false,"merged":[[4,8,6,8],[4,9,6,9],[4,10,6,10],[8,4,8,5],[9,4,9,5],[7,4,7,5]]}
[]
[]
[]
[]
[{"$nulls":8},"Állapot ért. jelentés (4 évente)","Tömörségi vizsg. (5 évente)","Szerkezeti vizsg. (10 évente)"]
[]
[]
[{"$nulls":4},"Használatbavételi eng.",null,"Érvényes","Térfogat","ATIKÖFE","MKEH","MKEH"]
[null,"Központi kazánház","Semmelweis u. 8.","olajtároló tartály","2014-05-12",null,"2026-05-12","30 m3","2018-04-30","2019-05-12","2024-05-12"]
[null,"265-ágyas Új Klinika","Semmelweis u. 6.","gázolajtároló tartály","2013-10-24",null,"2025-10-24","10 m3","2017-10-31","2018-10-24","2023-10-24"]

{"sheet":"Követelményértékek","index":2,"n_rows":21,"n_cols":9,"rows_kept":21,"cut":false,"hidden":false,"merged":[[14,1,14,6],[16,2,16,4],[2,2,3,2],[2,1,3,1],[4,6,7,6],[8,6,11,6],[2,6,3,6]]}
[]
[]
[null,"Töltet neme","Töltet veszélyessége","Tartály legnagyobb üzemi nyomása","Tartály térfogata","Ps*V [bar*l]","Típus"]
[null,null,null,"Ps [bar]","V [l] vagy DN","Ps*DN [bar]",null,null,"Egyszerű nyomástartó "]
[null,"Gáznemű","igen",">0,5",">25",">1000","Nyomástartó edény",null," - töltete levegő vagy nitrogén"]
[null,"Gáznemű","nem",">0,5",">50",">3000",null,null," - Ps nyomása nagyobb mint 0,5 bar"]
[null,"Folyadék","igen ",">10",">100",">5000",null,null," - nincs kitéve tüzelés hatásának"]
[null,"Folyadék","nem",">10",">100",">10000",null,null,"Psmax = 30 bar"]
[null,"Gáznemű","igen",">0,5",">100",">2000","Nyomástartó csővezeték",null,"Ps*V = 10000 bar * l (MAX)"]
[null,"Gáznemű","nem",">0,5",">200",">5000",null,null,"°Cüz,min= -50 °C"]
[null,"Folyadék","igen ",">10",">200"," -",null,null,"°Cüz,max= 300 °C"]
[null,"Folyadék","nem",">10",">200",">10000"]
[null,"Túlhev. veszéllyel üzemelő"," -",">0,5",">25",">1000"," >110 °C"]
[]
[null,"Ha a nyomástartó gyári (üzemi) értékei ezeket a határértékeket meghaladja (mindhármat), akkor hatósági eljárásra és bejelentésre kötelezett a 2/2016 (I. 5.) NGM rendelet szerint! "]
[]
[null,null,"Ciklusidők"]
[null,"Megnevezés","Külső ellenőrzés [év]","Belső ellenőrzés [év]","Szilárdsági ellenőrzés [év]"]
[null,"Egyszerű nyomástartó",5,10,10]
[null,"Gyorsgőzfejlesztő, ha Ps*V<1000",3," - ",6]
[null,"Gyorsgőzfejlesztő, ha Ps*V>1000",1," -",3]

{"sheet":"Régi táblázat 2017-ből","index":3,"n_rows":116,"n_cols":20,"rows_kept":116,"cut":false,"hidden":false,"merged":[[35,12,35,13],[94,12,94,14],[84,12,84,14],[52,12,52,14],[50,12,50,14],[38,12,38,14],[36,12,36,13],[37,12,37,14],[43,12,43,14],[49,12,49,14],[90,12,90,14],[73,17,73,19],[72,17,72,19],[64,17,64,18],[51,12,51,14],[59,17,59,19],[52,17,52,19],[69,17,69,18],[65,17,65,18],[65,12,65,14],[66,17,66,18],[6,17,6,18],[33,12,33,14],[25,12,25,14],[33,17,33,18],[20,17,20,18],[29,17,29,19],[28,17,28,19],[22,12,22,14],[17,12,17,14],[4,5,4,6],[4,7,4,8],[4,9,4,10],[4,12,4,14],[38,17,38,19],[30,17,30,19],[18,17,18,19],[19,17,19,19],[17,17,17,18],[8,17,8,18],[9,17,9,19],[10,17,10,19],[15,17,15,18],[14,17,14,18],[13,17,13,19],[12,17,12,18],[0,0,0,18],[63,17,63,18],[2,2,2,18],[16,17,16,19],[37,17,37,19],[55,17,55,18],[43,17,43,19],[15,7,15,8],[50,17,50,19],[35,17,35,18],[36,17,36,18],[45,17,45,19],[49,17,49,18],[42,17,42,18],[15,12,15,13],[20,12,20,14],[100,17,100,18],[77,12,77,14],[85,12,85,14],[83,12,83,14],[86,17,86,18],[84,17,84,18],[79,17,79,19]]}
["SZEGEDI TUDOMÁNYEGYETEM NYOMÁSTARTÓ BERENDEZÉSEI    "]
["2007-07-05"]
[null,null,"SZTE NYOMÁSTARTÓ BERENDEZÉSEK"]
[]
[null,null,"STERILEZŐ","GŐZFEJLESZTŐ","LÉGTARTÁLY","AUTOKLÁV",null,"  KAZÁNOK",null,"OLAJTÁROLÓK",null,null,"ESEDÉKES VIZSGÁLAT "]
[]
["SZTE számozás","Kalorc. számozás","Intézmény neve","Üzemel","Berendezés elnevezése","Gy. szám","Gy.év","KAR megnev.:","Besorolási (üzemi) nyomás","Besorolási térfogat","ps.v","Bejelentés ügye elintézve 2005.11.17.","Külső ellenőrzés","Belső ellenőrzés","Szilárdsági ellenőrzés","Gép      könyv","Haszn.  utasítás","Hatóság besorolása.",null,"megjegyzés"]
[null,8,"Klinikakert \"É\""]
[3,24,"Sebészeti klinika","Szeged, Pécsi u. 6.","sterilező        GET",900045,1990,"ÁOK (b)","1és3,5/3,5","540/108",null,"bejelentésre kötelezett",2018,2017,2017,null,null,"Hatósági bejelentésre+ellenőrzésre köteles"]
[4,25,"Sebészeti klinika","u.a.","sterilező",900046,1990,"ÁOK (b)","1és3,5/3,5","540/108",null,"bejelentésre kötelezett",2018,2017,2017,null,null,"Hatósági bejelentésre+ellenőrzésre köteles"]
[5,11,"Sebészeti klinika","u.a.","gőzfejlesztő  CERT",27030,2002,"ÁOK (b)",4.5,53,238.5,"bejelentésre kötelezett",2019,null,2019,null,null,"Hatósági bejelentésre+ellenőrzésre köteles"]
[6,null,"Sebészeti klinika","u.a.","légtartály",209895,1995,"ÁOK (b)",10,500,5000,"bejelentésre kötelezett",2019,2021,2025,null,null,"Használatuk: megadott ideig engedélyezett"]
[7,27,"Szemészeti klinika","Korányi fasor 10-11.","gőzfejlesztő CERT.",27029,2002,"ÁOK (b)",4.5,53,238.5,"bejelentésre kötelezett",2019,2019,2019,null,null,"Hatósági bejelentésre+ellenőrzésre köteles"]
[8,26,"Szemészeti klinika","Korányi fasor 10-11.","sterilező        SAN",86303,1986,"ÁOK (b)",null,"90/500",null,"bejelentésre kötelezett",2018,2022,2027,null,null,"Hatósági bejelentésre+ellenőrzésre köteles"]
[9,null,"I sz. Belgyógy. Kl.","Korányi fasor 8.","sterilező        SAN",88023,1990,"ÁOK (b)","1és3,0","520/120",null,"bejelentésre kötelezett",2018,2017,2017,null,null,"Hatósági bejelentésre+ellenőrzésre köteles"]
["61.",null,"I sz. Belgyógy. Kl.","Korányi fasor 8.","FS 20 formaldehides steril",94015,1994,"88 kPa (0,88bar)",null,21,"18.48",null,"Nem ellenörzés köteles",{"$nulls":4},"Nem ellenörzés köteles"]
["59.",null,"Körintenzív","Korányi fasor 7.","légtartály",903390,1990,"ÁOK (b)",7,800,5600,"bejelentésre kötelezett",2018,2017,2017,null,null,"Hatósági bejelentésre+ellenőrzésre köteles"]
["42.",null,"Nagyoktatási épület","Dóm tér 13.","légtartály",16683,1976,"ÁOK (o)",16,1000,16000,"bejelentésre kötelezett","Üzemen kívül",{"$nulls":4},"Levélben közölni: nem üzemel.           /közölve/"]
[17,null,"Bólyai épület pince","Aradi vértanúk tere 1.","légtartály   (4629 Berkesi Ottó)",11853,1993,"TTIK",12,350,"        ","bejelentésre kötelezett",2022,2027,2027,null,null,"Hatósági bejelentésre+ellenőrzésre köteles"]
[18,null,"Bólyai épület  Radiológia","Aradi vértanúk tere 1. (padlás)","légtartály (6482 Jenei Z.)",8442,1996,"TTK",7,100,700,"bejelentésre kötelezett","Üzemen kívül","     -új kerül a helyére-",null,null,null,"Hatósági bejelentésre+ellenőrzésre köteles"]
["63.",null,"Bólyai épület  Radiológia","Aradi vértanúk tere 1. (belső udvar)","cseppolyós Nitrogén tart.",{"$nulls":6},"Linde tulajdona","Engedélyekről a szállító gondoskodik",{"$nulls":4},"Hivatal felé nincs teendő."]
[20,null,"Kémiai épület III em.","Dóm tér 7-8. kemenceszoba","légtartály",5150,1999,"TTK",11,300,3300,"bejelentésre kötelezett",2020,2025,2025,null,null,"Használatuk: megadott ideig engedélyezett"]
[19,null,"Kémiai épület ","u.a.  (felső szint)","légtartály",53,2000,"TTIK",11,50,null,null,"Hatósági eljárásra nem köteles."]
["62.",null,"Béke ép. üveges kompr.","Rerrich B. tér 1.","légtartály",264,2002,null,8,100,null,"bejelentésre kötelezett","Hatósági eljárásra nem köteles.",{"$nulls":4},"Hatósági eljárásra nem köteles."]
["74.",null,"Mikro és Immunbiol. Int.","Dóm tér 10-11.","LVS 50/70 autokláv",1220,2000,"ÁOK",2.5,137,274,null,2019,2017,2017]
["75.",null,"Mikro és Immunbiol. Int.","Dóm tér 10-11.","MA 5402 autokláv",31,1975,"ÁOK",{"$nulls":4},"Selejtezve"]
[null,null,"Klinikakert \"D\""]
[2,null,"Gyermekklinika","Korányi fasor 14-15.","légtartály",204895,1995,"ÁOK (b)",7,500,3500,"bejelentésre kötelezett",2018,2017,2017,null,null,"Hatósági bejelentésre+ellenőrzésre köteles"]
[10,21,"410 ágyas klinika","Semmelweis u. 6.","sterilező        SAN",95024,1995,"ÁOK (b)","1és3,0/3.0","500/120",null,"bejelentésre kötelezett",2018,2017,2017,null,null,"Hatósági bejelentésre+ellenőrzésre köteles"]
[11,22,"410 ágyas klinika","Semmelweis u. 6.","sterilező        SAN",95025,1995,"ÁOK (b)","1és3,0/3.0","500/120",null,"bejelentésre kötelezett",2018,2017,2019,null,null,"Hatósági bejelentésre+ellenőrzésre köteles"]
[12,23,"410 ágyas klinika","Semmelweis u. 6.","sterilező        SAN",90004,1991,"ÁOK (b)","1és3,0/3.0","500/120",null,"bejelentésre kötelezett",2018,2017,2017,null,null,"Hatósági bejelentésre+ellenőrzésre köteles"]
["43/b",null,"410 ágyas klinika","Semmelweis u. 6.","légtartály","21698-21708",2006,"ÁOK"]
[43,null,"410 ágyas klinika","Semmelweis u. 6.","légtartály",20999,1988,"ÁOK (b)",16,1000,16000,"bejelentésre kötelezett",2019,2018,2018,null,null,"Használatuk: megadott ideig engedélyezett"]
["57.",null,"410 ágyas klinika","Semmelweis u. 6.","cseppfolyós oxigén tart",31392,1988,"ÁOK (b)",15,11000,165000,"bejelentésre kötelezett","Engedélyről a szállító gondoskodik",{"$nulls":4},"Időszakos vizsgálatot elvégeztetni.  /70/3351129 Láng I./"]
["70.",null,"Női Klinika","Semmelweis u.1.","GE 2609-1 Sterilező",980831,1998,"ÁOK",3.5,415,1453,null,2019,2018,2018,null,null,"Létesítési engedélyt köteles kérni"]
["72.",null,"Női Klinika","Semmelweis u.1.","Formaldehides ster.",950406,1993,"ÁOK",1,177,177,null,"Nem ellenörzés köteles",{"$nulls":4},"Nem hatósági bejelentésre és ellenőrzésre kötelezett"]
["73.",null,"Női Klinika","Semmelweis u.1.","Hidrogénperoxidos ster",60366,2006,"ÁOK",0.4,30,12,null,"Nem ellenörzés köteles",{"$nulls":4},"Nem hatósági bejelentésre és ellenőrzésre kötelezett"]
[21,4,"Klinikai Mikrobiol. Int.","Semmelweis u. 6.","autokláv   fsz. (Nagy Anna  5401)",278160,1977,"TTK",2.5,115,287.5,"bejelentésre kötelezett","Üzemen kívül",{"$nulls":4},"Hatósági bejelentésre+ellenőrzésre köteles"]
[22,1,"Klinikai Mikrobiol. Int.","u.a.","autokláv",{"$nulls":6},"Vissza lett szállítva!","MTA tulajdon",{"$nulls":4},"Hivatal felé nincs teendő."]
[23,null,"Klinikai Mikrobiol. Int.","u.a.","autokláv     em.",433,1977,"TTK",2.5,115,287.5,"besorolásra kötelezett",2019,2021,2026,null,null,"Hatósági bejelentésre+ellenőrzésre köteles",null,"ellenőrzési idő az üzemeltető rendelkezése szerint "]
[24,null,"Klinikai Mikrobiol. Int.","u.a.","autokláv     em.","31-4764/0",1987,"TTK","3,0/ 1és3,0","150/16",null,"besorolásra kötelezett",2019,2021,2026,null,null,"Hatósági bejelentésre+ellenőrzésre nem köteles",null,"ellenőrzési idő az üzemeltető rendelkezése szerint "]
[25,null,"Klinikai Mikrobiol. Int.","u.a.","autoklav",452,1977,"TTK",2.5,115,null,null,2019,2021,2026,{"$nulls":4},"ellenőrzési idő az üzemeltető rendelkezése szerint "]
[44,null,"Közp.gyógyszertár ","Semmelweis u. 6.","sterilező       GET",920773,1992,"ÁOK (b)","1és3,5/3,5","560/100",null,"bejelentésre kötelezett",2018,2017,2017,null,null,"Hatósági bejelentésre+ellenőrzésre köteles"]
[45,null,"Központi gyógyszertár ","u.a.","sterilező",920772,1992,"ÁOK (b)","1és3,5/3,5","560/100",null,"bejelentésre kötelezett","Üzemen kívül",{"$nulls":4},"Hatósági bejelentésre+ellenőrzésre köteles"]
[46,null,"Központi gyógyszertár ","u.a.","légtartály",204692,1992,"ÁOK (b)",10,500,5000,"bejelentésre kötelezett",2018,2020,2025,null,null,"Használatuk: megadott ideig engedélyezett"]
[15,null,"KP. Kazánház","Semmelweis u. 8.","kompresszor-légtartály",2062,1983,"ÁOK (b)",10,500,5000,"bejelentésre kötelezett",2020,2022,2027,null,null,"Hatósági bejelentésre+ellenőrzésre köteles"]
["47.",null,"Központi kazánház","u.a.                   II/2.","Vitomax 200 HS",187003050,2003,"ÁOK (b)",12,11800,141600,"bejelentésre kötelezett",2018,2017,2022,null,null,"Időszakos ellenőrzést elvégeztetni"]
["48.",null,"Központi kazánház","u.a.                   II/1.","Vitomax 200 HS",187003049,2003,"ÁOK (b)",12,11800,141600,"bejelentésre kötelezett",2018,2017,2022,null,null,"Időszakos ellenőrzést elvégeztetni"]
["49.",null,"Központi kazánház","u.a.                    I.","3HO-7/12",7672,1978,"ÁOK (b)",12,25000,300000,"bejelentésre kötelezett",2018,2019,2024,null,null,"Időszakos ellenőrzést. elvégeztetni"]
["53.",null,"Gyermekkórház","Temesvári krt 35-37.","sterilező  tip: 23324",97002,1997,"ÁOK (b)","1és3,0/3,0","520/120",null,"bejelentésre kötelezett","Hatósági eljárásra nem köteles"]
["54.",null,"Gyermekkórház","u.a.","sterilező tip:GS 459-2-FO",96102,1996,"ÁOK (b)",null,null,null,"bejelentésre kötelezett","Nem bejelentésköteles",{"$nulls":4},"Nem bejelentésköteles"]
["58.",null,"Gyermekkórház","u.a","cseppfolyós oxigén tart",null,1975,"ÁOK (b)",18,15000,270000,"Linde tulajdona","Engedélyekről a szállító gondoskodik"]
[41,null,"Mosoda","Semmelweis u. 8.","légtartály",17671,1981,"ÁOK (b)",8,2000,16000,"bejelentésre kötelezett","Üzemen kívül",{"$nulls":4},"Jelentve (2008.04.02.)"]
[null,37,"Fogklinika"]
[28,38,"Fogklinika","Tisza Lajos krt. 64-66.","légtartály",668335,null,"FK ",8,110,880,"bejelentésre kötelezett","Hatósági eljárásra nem köteles!",{"$nulls":4},"Hatósági eljárásra nem köteles!"]
["71.",null,"Fogklinika","Tisza Lajos krt. 64-66.","GE 666-1 Sterilező",950427,1995,"FK ","3/-1 és 3.5/-1",null,null,null,2018,2017,2017,null,null,"Létesítési dokumentációig üzemben tartható"]
[null,null,"Anatómia"]
["40.",null,"Anatómia Intézet","Kossuth Lajos sgt 40.","gőzfejlesztő",10346,2000,"ÁOK (o)",10,9.8000000000000007,98,"nem köteles","Nem bejelentésköteles",{"$nulls":4},"Nem bejelentésköteles"]
["38.",31," Domaszék","Domaszék külterület.","VERU gőzkazán",1081,1989,"ÁOK (o)",3.5,110,385,"bejelentésre kötelezett",2018,2018,2026]
["39.",null,"SZTE Domaszék","u.a.","autokláv  (vill.:8kVA)",2353,1979,"ÁOK (o)","1és2,5/2,5","100/12",null,"bejelentésre kötelezett","Üzemen kívül!",{"$nulls":4},"Hatósági bejelentésre+ellenőrzésre köteles"]
["52.",null,"Domaszék","u.a.","autokláv",271,1989,"ÁOK (o)",3,140,420,"bejelentésre kötelezett",2018,2017,2017]
["50.",null,"GYTK","Eötvös u. 2.","légtartály",29016,1975,"GYTK",10,2000,20000,"bejelentésre kötelezett",2019,2018,2018,null,null,"Használatuk: megadott ideig engedélyezett"]
["51.",null,"GYTK","Eötvös u. 2.","autokláv",15912257,1959,"GYTK",3,30,90,"nem köteles","Hatósági eljárásra nem köteles!",{"$nulls":4},"Bejelenteni, hatósági ellenőrzésre nem köteles."]
["64.",null," Irinyi épület","Tisza L. krt. 103.","TP 300/07G",10909,1991,"HMV",0.25,820,null,null,"Nem használjuk.",{"$nulls":4},"Közölni: nem használjuk.                     /közölve/"]
["65.",null," Irinyi épület","Tisza L. krt. 103.","TP 300/07G",10910,1991,"HMV",0.25,820,null,null,"Nem használjuk.",{"$nulls":4},"Közölni: nem használjuk.                     /közölve/"]
[null,null,"Biológia Újszeged"]
["60.",null,"Biológia Mikrobiológia Tsz","Közép fasor 52.        3.em.","autokláv","31-18200/9",null,"TTK",2.5,150,375,"bejelentésre kötelezett",2019,2021,2026]
[29,2,"Biol.Mikrobiol.Tanszék","Közép fasor 52.        3.em.","autokláv","315382/2",null,"TTIK",2.5,150,375,"bejelentésre kötelezett",2019,2021,2026,null,null,"Hatósági bejelentésre+ellenőrzésre köteles",null,"ellenőrzési idő az üzemeltető rendelkezése szerint "]
[30,3,"Biol.Mikrobiol.Tanszék","Közép fasor 52.        3.em.","autokláv","1511-558-53",1958,"TTIK",2.5,125,312.5,"bejelentésre kötelezett",2019,2021,2026,null,null,"Hatósági bejelentésre+ellenőrzésre köteles",null,"ellenőrzési idő az üzemeltető rendelkezése szerint "]
["69.",null,"Biol.Mikrobiol.Tanszék","Közép fasor 52.        3.em.","Atlas Copco GX 7",7000969,"2007.","TTK","Pmax 7,3 bar",500,3650,null,2018,2017,2017,null,null,"Létesítési engedélyt köteles kérni"]
[]
[null,null,"Mérnök kar"]
[31,12,"SZTE MK","Moszkvai krt. 5-7.","autokláv",196001,1960,"MK",3,400,1200,"bejelentésre kötelezett",2018,2017,2017,null,null,"Hatósági bejelentésre+ellenőrzésre köteles"]
[32,13,"SZTE MK  ","Moszkvai krt. 5-7.","légtartály",2063,1988,"MK",7.5,500,3750,"bejelentésre kötelezett",2018,2017,2017,null,null,"Hatósági bejelentésre+ellenőrzésre köteles"]
[88,null,"SZTE MK","Moszkvai krt. 9.","légtartály",435294,2009,"MK",11,500,5500,null,2019,2021,2021]
["55.",null,"SZTE MK","Moszkvai krt. 5-7.","TP 300/12G   I.",9182,1987,"MK",8,860,6880,"bejelentésre kötelezett",2019,2021,2026,null,null,"Időszakos ellenőrzést elvégeztetni"]
["56.",null,"SZTE MK","Moszkvai krt. 5-7.","TP 300/12G   II.",9183,1987,"MK",8,860,6880,"bejelentésre kötelezett",2019,2021,2026,null,null,"Időszakos ellenőrzést. elvégeztetni"]
["66.",null,"SZTE MK","Moszkvai krt. 5-7.","TP 600/12G",9184,1987,"HMV",{"$nulls":4},"Melegvizes"]
[null,null,"MFK Hmvhely"]
[33,14,"SZTE MFK Hmvhely Mikrobiológia","Andrássy u.15.","autokláv",81013,1981,"MFK","1és2,5/2,5",150,null,"bejelentésre kötelezett",2018,2021,2026,null,null,"Hatósági bejelentésre+ellenőrzésre köteles"]
["34.",15,"SZTE MFK Hmvhely ","Andrássy u.15.","autokláv","2251/9",null,"MFK",1.5,15,22.5,"nem köteles","Hatósági eljárásra nem köteles!",{"$nulls":4},"Bejelenteni, hatósági ellenőrzése nem köteles."]
[35,17,"SZTE MFK Hmvhely ","Andrássy u.15.","autokláv","22507/9",1981,"MFK",1.5,15,22.5,"nem köteles","Hatósági eljárásra nem köteles!",{"$nulls":4},"Bejelenteni, hatósági ellenőrzése nem köteles."]
[36,16,"SZTE MFK Hmvhely ","Andrássy u.15.","autokláv","2253/9",null,"MFK",1.5,15,22.5,"nem köteles","Hatósági eljárásra nem köteles!",{"$nulls":4},"Bejelenteni, hatósági ellenőrzése nem köteles."]
["68.",null,"IV. kazán","Andrássy u. 15.","Lavatherm",752,1976,"HMV",0.3,null,null,null,"Melegvizes"]
["37.",34,"SZTE MFK Kutasi út","Kutasi u.","PB gáztartály",507396,1996,"MFK",null,null,null,"Bérlemény","Engedélyekről a szállító gondoskodik",{"$nulls":4},"Hivatal felé nincs teendő."]
["67.",35,"HMVhely  III. kazán","Andrássy u. 15.","Lavatherm",765,1977,"HMV",0.3,null,null,null,"Melegvizes"]
["SZTE számozás","Kalorc. számozás","Intézmény neve","Üzemel","Berendezés elnevezése","Gy. szám","Gy.év","KAR megnev.:","Besorolási (üzemi) nyomás","Besorolási térfogat","ps.v","Bejelentés ügye elintézve 2005.11.17.","Külső ellenőrzés","Belső ellenőrzés","Szilárdsági ellenőrzés","Gép      könyv","Haszn.  utasítás","Hatóság besorolása."]
[76,null,"Biokémiai Intézet","Dóm tér 9.","ZMB 48 V. hord.kompr.",null,2005,null,8,24,192]
[null,null,"II. Korház"]
["77.",null,"II. Korház  (padlás)","Kálvária sgt. 57.","gőzfejlesztő   Certuss  ",11780,2005,"ÁOK",10,32.299999999999997,323]
["78.",null,"II. Korház  (konyha)","Kálvária sgt. 57.","gőzfejlesztő   Certuss  ",11823,2005,"ÁOK",10,32.299999999999997,323,null,"Üzemen kívül helyezve"]
["80.",null,"II. Korház","Kálvária sgt. 57.","sterilizáló  (Sanamij)",5042,2005,"tip 669-2V",3,493,null,null,2019,2018,2018]
["79.",null,"II. Korház","Kálvária sgt. 57.","sterilizáló  (Sanamij)",5041,2005,"tip 669-2V",3,493,null,null,2019,2018,2018]
["81.",null,"II. Korház","Kálvária sgt. 57.","sterilizáló  (Sanamij)",5017,2005,"tip 66-12-V",2.75,713,null,null,2019,2021,2026]
["82.",null,"II. Korház","Kálvária sgt. 57.","cseppfolyós oxigén",360516,null,"tip KV 36",{"$nulls":4},"Engedélyekről a szállító gondoskodik"]
["83.",null,"II. Korház Urológia műtő","Kálvária sgt. 57.","asztali gőzfejlesztő",6218844511,1999,"Statim 2000",null,"50lit. alatti"]
[84,null,"II. Korház    Seb. műtő","Kálvária sgt. 57.","asztali gőzfejlesztő",6218964012,1999,"Statim 2000",null,"50lit. alatti"]
["85.",null,"II. Korház","Kálvária sgt. 57.","Atlas Copco GX 7",44925,2005,"ÁOK",11,270,null,null,2019,2018,2018]
["86.",null,"II. Korház","Kálvária sgt. 57.","Atlas Copco GX 7",44918,2005,"ÁOK",11,270,null,null,2019,2018,2018]
["87.",null,"II. Korház","Kálvária sgt. 57.","Atlas Copco GX 7",44935,2005,"ÁOK",11,270,null,"Beépítésre fog kerülni",2019,2018,2018]
[]
[]
[]
[null,null,"Központi kazánház","Semmelweis u. 8.","olajtároló tartály",{"$nulls":4},"30 m3",null,null,null,2018]
[null,null,"Füvészkert","Lövölde u. 42.","olajtároló tartály",{"$nulls":4},"50 m3",null,null,null,2018]
{"$rows_empty":9}
[null,null,"Frissítve:2017.09.17"]
[null,null,"Fejér Zoltán"]